Cogmind - Beta 13 *** ADVENTURER MODE // 2024.04.05 @ 13:25:05 Player: Tav Result: Self-destructed Performance ------------- Evolutions (2) 1000 Regions Visited (7) 1400 Robots Destroyed (76) 380 Value Destroyed (1969) 1969 Prototype IDs (3) 60 Alien Tech Used (0) 0 Bonus (594) 594 TOTAL SCORE: 5403 Bonus ------- High Alert Combat Kills 248 Follower Combat Kills 46 Aligned with FarCom 300 Cogmind --------- Core Integrity 198/550 Matter 211/300 Energy 340/340 System Corruption 0% Temperature Cool (0) Movement Treading (170) Location -8/Materials Parts ------- > --- POWER (2) -------- Light Deuterium Engine > --- PROPULSION (2) --- Armored Treads Armored Treads > --- UTILITY (5) ------ Cooling System Compact Battery Improved Targeting Computer > --- WEAPON (2) ------- Grenade Launcher Rocket Launcher > --- INVENTORY (5) ---- Light Treads Weight Redist. System High-powered Shotgun Peak State ------------ > --- POWER ------------ Light Deuterium Engine Light Deuterium Engine > --- PROPULSION ------- Armored Treads Armored Treads > --- UTILITY ---------- Cooling System Small Storage Unit Compact Battery Advanced Visual Processing Unit Improved Targeting Computer > --- WEAPON ----------- YOLO Cannon > --- INVENTORY -------- Ion Engine Light Treads Armored Treads Weight Redist. System High-powered Shotgun Grenade Launcher Rocket Launcher [Rating: 44] Favorites ----------- Power Nuclear Core Engine Ion Engine Power Core Nuclear Core Propulsion Armored Treads Treads Armored Treads Utility Small Storage Unit Device Improved Sensor Array Storage Small Storage Unit Processor Advanced Visual Processing Unit Weapon Light Assault Rifle Energy Gun Small Laser Energy Cannon YOLO Cannon Ballistic Gun Light Assault Rifle Launcher Grenade Launcher Build | -11 -10 -10 -9 -9 -9 -8 -8 ------- Run | Yrd Mat Min Mat Min Exi Min Mat Slots Evolved 4 | . . . 2 . . . 2 Power 1 | . . . . . . . 1 Propulsion . | . . . . . . . . Utility 3 | . . . 2 . . . 1 Weapon . | . . . . . . . . Parts Attached 28 | 6 2 2 7 . 1 . 10 Power 5 | 1 . 1 . . . . 3 Engine 3 | 1 . . . . . . 2 Core 2 | . . 1 . . . . 1 Reactor . | . . . . . . . . Propulsion 7 | 2 1 . 2 . . . 2 Treads 7 | 2 1 . 2 . . . 2 Leg . | . . . . . . . . Wheel . | . . . . . . . . Hover . | . . . . . . . . Flight . | . . . . . . . . Utility 9 | 1 1 1 3 . . . 3 Device 3 | . . . 2 . . . 1 Storage 2 | 1 . . . . . . 1 Processor 4 | . 1 1 1 . . . 1 Hackware . | . . . . . . . . Protection . | . . . . . . . . Artifact . | . . . . . . . . Weapon 7 | 2 . . 2 . 1 . 2 Energy Gun 1 | 1 . . . . . . . Energy Cannon 1 | . . . . . 1 . . Ballistic Gun 2 | 1 . . 1 . . . . Ballistic Cannon . | . . . . . . . . Launcher 3 | . . . 1 . . . 2 Special Weapon . | . . . . . . . . Impact Weapon . | . . . . . . . . Slashing Weapon . | . . . . . . . . Piercing Weapon . | . . . . . . . . Special Melee Weapon . | . . . . . . . . Unidentified Prototypes 1 | . . . . . 1 . . Parts Lost 6 | . . . 1 . . . 5 Power 2 | . . . . . . . 2 Propulsion . | . . . . . . . . Utility 2 | . . . . . . . 2 Weapon 2 | . . . 1 . . . 1 Highest Loss Streak 4 | . . . 1 . . . 4 To Critical Strikes . | . . . . . . . . Average Slot Usage (%) 93 | . 98 100 99 100 91 77 82 Engine 4 | . 14 . . . . . 10 Core 7 | . . 13 11 11 11 11 6 Treads 23 | . 27 28 22 22 22 22 18 Device 4 | . . . 11 11 6 . 6 Storage 11 | . 14 14 11 11 11 11 10 Processor 18 | . 12 14 22 22 22 22 22 Energy Gun 4 | . 14 14 1 . . . . Energy Cannon 3 | . . . . . 3 11 8 Ballistic Gun 8 | . 14 14 10 11 7 . . Launcher 3 | . . . 9 11 7 . . Naked Turns . | . . . . . . . . Heaviest Build 37 | 12 12 14 19 19 30 30 37 Greatest Support 40 | 40 40 40 40 40 40 40 40 Greatest Overweight (x) 1 | . . . . . . . 1 Average Overweight (x) . | . . . . . . . . Largest Inventory Capacity 8 | 8 8 8 8 8 8 8 8 Average Capacity 7 | 6 8 8 8 8 8 8 7 Most Carried 8 | 1 6 8 8 8 8 8 7 Average Carried 6 | . 3 7 7 7 7 8 6 Final Capacity 8 | 8 8 8 8 8 8 8 5 Final Carried 8 | 1 6 8 7 8 8 8 3 Class Distribution -------------------- 65% | Mutant 34% | Skirmisher Dominant Class ---------------- Mutant | -10/Materials Mutant | -10/Mines Skirmisher | -9/Materials Skirmisher | -9/Mines Skirmisher | -9/Exiles Mutant | -8/Mines Mutant | -8/Materials Resources | -11 -10 -10 -9 -9 -9 -8 -8 ----------- Run | Yrd Mat Min Mat Min Exi Min Mat Matter Collected 704 | 189 135 31 145 79 . 42 83 Remotely . | . . . . . . . . Salvage Created 1839 | . 515 86 91 61 . 54 1032 Parts 120 | . 38 10 6 8 . 7 51 Haulers Intercepted 6 | . 2 . . . . . 4 Recyclers Shooed 3 | . 3 . . . . . . Parts Field Recycled . | . . . . . . . . Retrieved Matter . | . . . . . . . . Parts Self-Destructed . | . . . . . . . . Prevented . | . . . . . . . . Kills | -11 -10 -10 -9 -9 -9 -8 -8 ------- Run | Yrd Mat Min Mat Min Exi Min Mat Combat Hostiles Destroyed 57 | . 9 5 5 8 . 4 26 Guns 15 | . 9 5 1 . . . . Cannons 9 | . . . . . . 2 7 AOE 28 | . . . 4 8 . 2 14 Classes Destroyed 12 | . 5 . 2 1 . . 4 Worker 2 | . . . . . . . 2 Builder 2 | . . . . . . . 2 Tunneler 2 | . . . 1 . . 1 . Hauler 6 | . 2 . . . . . 4 Recycler 1 | . 1 . . . . . . Operator 1 | . . . 1 . . . . Watcher 5 | . 3 . . . . . 2 Swarmer 27 | . 5 5 4 5 . 4 4 Grunt 23 | . 4 . 1 2 . . 16 Brawler 1 | . . . . 1 . . . Sentry 5 | . . . . . . . 5 Hunter 1 | . . . . . . . 1 Best Kill Streak 14 | . 3 3 3 3 . 4 14 Combat Bots Only 14 | . 3 3 3 3 . 4 14 Max Kills in Single Turn 3 | . 1 1 3 2 . 3 3 Gunslinging . | . . . . . . . . Exploded 3 | . . . 3 2 . 2 2 Melee . | . . . . . . . . Uniques/NPCs Destroyed . | . . . . . . . . Combat | -11 -10 -10 -9 -9 -9 -8 -8 -------- Run | Yrd Mat Min Mat Min Exi Min Mat Hostile Shots Fired 187 | . 42 22 28 17 . 12 66 Missed 49 | . 9 4 5 4 . 4 23 Damage Taken 1251 | . 225 113 221 96 . 45 551 Core 245 | . 48 25 33 13 . 18 108 Absorbed by Shields . | . . . . . . . . Ignored by Resistances 381 | . 75 36 66 31 . 16 157 Regen/Repaired (Parts) 59 | . 59 . . . . . . Core Remaining (%) 84 | 100 . 70 . . . 84 . Volleys Fired 121 | . 44 11 18 10 . 5 33 Largest 2 | . 2 2 1 2 . 1 2 Hottest 100 | . 60 60 30 55 . 100 100 Shots Fired 179 | . 85 22 18 14 . 5 35 Gun 123 | . 85 22 11 5 . . . Cannon 34 | . . . . . . 5 29 Launcher 22 | . . . 7 9 . . 6 Special . | . . . . . . . . Kinetic 71 | . 44 11 11 5 . . . Thermal 86 | . 41 11 . . . 5 29 Explosive 22 | . . . 7 9 . . 6 Electromagnetic . | . . . . . . . . Robot Hit Streak 20 | . 19 20 7 13 . 14 7 Robot Miss Streak 6 | . 2 3 3 6 . 1 2 Penetration Max . | . . . . . . . . Secondary Targets 3 | . 1 2 . . . . . Max Gunslinging Chain 1 | . 1 1 . . . . . Shots Hit Robots 125 | . 68 14 9 9 . 3 22 Core Hits 92 | . 28 6 15 12 . 3 28 Critical Kills 6 | . . . . . . . 6 Critical Parts Destroyed . | . . . . . . . . Critical Strikes 6 | . . . . . . . 6 Meltdown 6 | . . . . . . . 6 Melee Attacks . | . . . . . . . . Impact . | . . . . . . . . Slashing . | . . . . . . . . Piercing . | . . . . . . . . Sneak Attacks . | . . . . . . . . Combat Hostiles . | . . . . . . . . Follow-up Attacks . | . . . . . . . . Damage Inflicted 8140 | . 689 141 418 772 . 691 5429 Guns 1009 | . 689 141 71 108 . . . Cannons 2639 | . . . . . . 377 2262 Explosions 4492 | . . . 347 664 . 314 3167 Melee . | . . . . . . . . Ramming . | . . . . . . . . Kinetic 511 | . 290 42 71 108 . . . Thermal 6538 | . 399 99 . . . 691 5349 Explosive 1091 | . . . 347 664 . . 80 Electromagnetic . | . . . . . . . . Impact . | . . . . . . . . Slashing . | . . . . . . . . Piercing . | . . . . . . . . Highest Corruption . | . . . . . . . . Average Corruption . | . . . . . . . . Corruption Purged . | . . . . . . . . Corruption Blocked . | . . . . . . . . Overload Shots . | . . . . . . . . Overflow Damage 1283 | . . . 14 . . 218 1051 Projectiles 966 | . . . . . . 171 795 Explosions 317 | . . . 14 . . 47 256 Melee . | . . . . . . . . Knockbacks . | . . . . . . . . Impact . | . . . . . . . . Kinetic . | . . . . . . . . Secondary . | . . . . . . . . Self-Inflicted Damage 61 | . . . . 15 . . 46 Shots 2 | . . . . 1 . . 1 Rammed . | . . . . . . . . Targets Rammed . | . . . . . . . . Kicked . | . . . . . . . . Crushed . | . . . . . . . . Highest Temperature 149 | . 58 102 5 3 . 64 149 Average Temperature 32 | . 21 41 4 3 . 28 75 Received Heat Transfer 393 | . 66 . 87 6 . . 234 Siege Activations . | . . . . . . . . Robots Corrupted . | . . . . . . . . Combat Hostiles . | . . . . . . . . Parts Fried . | . . . . . . . . Impact Corruptions . | . . . . . . . . Robots Melted 6 | . . . . . . . 6 Combat Hostiles 5 | . . . . . . . 5 Parts Melted 10 | . . 1 . . . . 9 Heat Transferred 6825 | . 900 225 . . . 640 5060 Parts Sabotaged . | . . . . . . . . Parts Stolen . | . . . . . . . . Parts Stripped . | . . . . . . . . Power Chain Reactions . | . . . . . . . . Alert | -11 -10 -10 -9 -9 -9 -8 -8 ------- Run | Yrd Mat Min Mat Min Exi Min Mat Peak Influence 934 | . 137 152 198 194 . 136 934 Initial 12 | . . 8 . 12 . . . Average 121 | . 60 30 95 64 . 59 430 Maximum Alert Level 3 | . . . . . . . 3 Low Security (%) 88 | 100 100 100 100 100 . 100 28 Level 1 5 | . . . . . . . 31 Level 2 2 | . . . . . . . 12 Level 3 4 | . . . . . . . 27 Level 4 . | . . . . . . . . Level 5 . | . . . . . . . . High Security . | . . . . . . . . Max Security . | . . . . . . . . Squads Dispatched 5 | . 1 1 1 . . . 2 Investigation 2 | . 1 1 . . . . . Extermination . | . . . . . . . . Reinforcement 2 | . . . 1 . . . 1 Assault 1 | . . . . . . . 1 Garrison . | . . . . . . . . Intercept . | . . . . . . . . Searches Triggered . | . . . . . . . . Construction Impeded 1 | . . . . . . . 1 Haulers Reinforced . | . . . . . . . . Active Scanning Responses . | . . . . . . . . Cargo Convoy Interrupts . | . . . . . . . . Stealth | -11 -10 -10 -9 -9 -9 -8 -8 --------- Run | Yrd Mat Min Mat Min Exi Min Mat Distress Signals 4 | . . . 1 . . . 3 Communications Jammed . | . . . . . . . . Distress Signals . | . . . . . . . . Times Spotted 79 | . 13 6 21 9 . 3 27 Peak Tracking Total 7 | . 4 3 5 4 . 3 7 Tactical Retreats 1 | . . . . . . . 1 Traps | -11 -10 -10 -9 -9 -9 -8 -8 ------- Run | Yrd Mat Min Mat Min Exi Min Mat Traps Triggered 2 | . 1 . . . . . 1 Indirectly . | . . . . . . . . Trap Hack Attempts . | . . . . . . . . Triggered . | . . . . . . . . Disarmed . | . . . . . . . . Reprogrammed . | . . . . . . . . Reused . | . . . . . . . . Traps Extracted . | . . . . . . . . Installed . | . . . . . . . . Triggered . | . . . . . . . . Machines | -11 -10 -10 -9 -9 -9 -8 -8 ---------- Run | Yrd Mat Min Mat Min Exi Min Mat Machines Disabled 12 | . . . 2 3 . 1 6 Max in Single Turn 2 | . . . 1 2 . 1 2 Garrison Access 1 | . . . . . . . 1 Machines Repaired . | . . . . . . . . Machines Dismantled . | . . . . . . . . Machines Sabotaged . | . . . . . . . . Overloaded Fab Kills . | . . . . . . . . Hacking | -11 -10 -10 -9 -9 -9 -8 -8 --------- Run | Yrd Mat Min Mat Min Exi Min Mat Machines Accessed 5 | . 3 2 . . . . . Terminals 3 | . 2 1 . . . . . Fabricators . | . . . . . . . . Repair Stations 1 | . 1 . . . . . . Recycling Units . | . . . . . . . . Scanalyzers . | . . . . . . . . Garrison Access . | . . . . . . . . Total Hacks 9 | . 6 3 . . . . . Successful 7 | . 4 3 . . . . . Failed 2 | . 2 . . . . . . Catastrophic 1 | . 1 . . . . . . Database Lockouts . | . . . . . . . . Manual 1 | . . . . . 1 . . Terminals 6 | . 4 2 . . . . . Fabricators . | . . . . . . . . Repair Stations 2 | . 2 . . . . . . Recycling Units . | . . . . . . . . Scanalyzers . | . . . . . . . . Garrison Access . | . . . . . . . . Terminal Hacks 5 | . 2 3 . . . . . Record 1 | . . 1 . . . . . Prototype ID Bank 1 | . 1 . . . . . . Open Door 1 | . . 1 . . . . . Registered Components 1 | . 1 . . . . . . Zone Layout 1 | . . 1 . . . . . Fabricator Hacks . | . . . . . . . . Repair Station Hacks 2 | . 2 . . . . . . Scan Component 1 | . 1 . . . . . . Repair 1 | . 1 . . . . . . Recycling Unit Hacks . | . . . . . . . . Scanalyzer . | . . . . . . . . Garrison Access Hacks . | . . . . . . . . Unauthorized Hacks . | . . . . . . . . Terminals . | . . . . . . . . Fabricators . | . . . . . . . . Repair Stations . | . . . . . . . . Recycling Units . | . . . . . . . . Scanalyzers . | . . . . . . . . Garrison Access . | . . . . . . . . Data Cores Recovered . | . . . . . . . . Used . | . . . . . . . . Hacking Detections 2 | . 2 . . . . . . Full Trace Events . | . . . . . . . . Feedback Events . | . . . . . . . . Feedback Blocked . | . . . . . . . . Robot Schematics Acquired . | . . . . . . . . Robots Built . | . . . . . . . . Authchips . | . . . . . . . . Time . | . . . . . . . . Total Robot Build Rating . | . . . . . . . . Part Schematics Acquired . | . . . . . . . . Parts Built . | . . . . . . . . Authchips . | . . . . . . . . Time . | . . . . . . . . Total Part Build Rating . | . . . . . . . . Parts Repaired 1 | . 1 . . . . . . Time 26 | . 26 . . . . . . Parts Recycled . | . . . . . . . . Recycled Matter . | . . . . . . . . Retrieved Matter . | . . . . . . . . Retrieved Components . | . . . . . . . . Parts Scanalyzed . | . . . . . . . . Part Schematics Acquired . | . . . . . . . . Parts Damaged . | . . . . . . . . Bothacking | -11 -10 -10 -9 -9 -9 -8 -8 ------------ Run | Yrd Mat Min Mat Min Exi Min Mat Used RIF Installer . | . . . . . . . . Robots Hacked . | . . . . . . . . Non-combat . | . . . . . . . . Combat . | . . . . . . . . Robot Hacks Applied . | . . . . . . . . Relay Couplers Released 1 | . . . . . . . 1 Machine Destruction 1 | . . . . . . . 1 Fabnet Peak Effective % . | . . . . . . . . Robots Rewired . | . . . . . . . . Allies Hacked . | . . . . . . . . Hacks Repelled . | . . . . . . . . Allies | -11 -10 -10 -9 -9 -9 -8 -8 -------- Run | Yrd Mat Min Mat Min Exi Min Mat Total Allies 2 | . . 2 . . . . . Largest Group 2 | . . 2 2 1 . . . Highest-Rated Group 42 | . . 42 42 31 . . . Highest-Rated Ally 31 | . . 31 31 31 . . . Total Orders . | . . . . . . . . Ally Attacks 25 | . . 2 17 6 . . . Total Damage 267 | . . 20 184 63 . . . Kills 5 | . . 1 2 2 . . . Allies Corrupted . | . . . . . . . . Allies Melted . | . . . . . . . . Intel | -11 -10 -10 -9 -9 -9 -8 -8 ------- Run | Yrd Mat Min Mat Min Exi Min Mat Robot Analysis Total . | . . . . . . . . Derelict Logs Recovered 2 | . . . . 2 . . . Drone Launches . | . . . . . . . . Drone Recoveries . | . . . . . . . . Exploration | -11 -10 -10 -9 -9 -9 -8 -8 ------------- Run | Yrd Mat Min Mat Min Exi Min Mat Turns Passed 4896 | 69 1152 498 444 961 422 608 742 Spaces Moved 2636 | 39 605 284 239 537 245 344 343 Core 2 | 2 . . . . . . . Treads 2634 | 37 605 284 239 537 245 344 343 Legs . | . . . . . . . . Wheels . | . . . . . . . . Hover . | . . . . . . . . Flight . | . . . . . . . . Fastest Speed 50 | 50 160 160 160 170 170 170 170 Average Speed 166 | 154 160 160 165 170 170 170 170 Slowest Speed 250 | 160 160 160 170 170 170 170 250 Overloaded Moves . | . . . . . . . . Propulsion Burnouts . | . . . . . . . . Robots Hopped . | . . . . . . . . Cave-ins Triggered . | . . . . . . . . Exploration Rate (%) 61 | 4 85 64 39 93 65 93 47 Regions Visited 7 Branch Regions 4 Pre-discovered Areas . | . . . . . . . . Known Exits Taken 4 | . . . 1 1 1 1 . Unknown Exits Taken 3 | 1 1 1 . . . . . Scrap Searched 3 | . . . . 2 . 1 . Spaces Dug . | . . . . . . . . Terrain Destroyed 444 | . . . 45 52 . 40 307 Melee . | . . . . . . . . Projectile 7 | . . . . . . 1 6 AOE 437 | . . . 45 52 . 39 301 Terrain Rammed . | . . . . . . . . Walls Destroyed . | . . . . . . . . Machines Disabled . | . . . . . . . . Actions | -11 -10 -10 -9 -9 -9 -8 -8 --------- Run | Yrd Mat Min Mat Min Exi Min Mat Total 2912 | 45 712 307 270 571 253 352 402 Wait 112 | . 57 8 4 24 . 4 15 Move 2629 | 38 604 283 238 536 244 343 343 Hop . | . . . . . . . . Pick Up 13 | 1 5 2 1 1 3 . . Fast Attach 15 | 6 2 . . . . . 7 Attach 7 | . . . 3 . 1 . 3 Detach . | . . . . . . . . Swap 6 | . . 2 4 . . . . Drop 9 | . . 1 2 . 5 . 1 Fire 121 | . 44 11 18 10 . 5 33 Melee . | . . . . . . . . Ram . | . . . . . . . . Kick . | . . . . . . . . Crush . | . . . . . . . . Escape Stasis . | . . . . . . . . Rewire . | . . . . . . . . Trap . | . . . . . . . . Miscellaneous . | . . . . . . . . Route ------- -11/Scrapyard -10/Materials (discovered 4 exits: [*Mat x3] / *Min) -10/Mines -9/Materials (discovered 2 exits: *Mat / *Min) -9/Mines (discovered 3 exits: *Mat x2 / *Exi) -9/Exiles (discovered 2 exits: *Min x2) -8/Mines -8/Materials (discovered 1 exit: Fac) History --------- Turn | Location | Event 48 | -11/Scrapyard | Discovered new exit (range 15) 70 | -11/Scrapyard | Entered Materials 279 | -10/Materials | Discovered new exit (range 17) 307 | -10/Materials | Discovered new exit (range 17) 314 | -10/Materials | Build established: Mutant 688 | -10/Materials | Discovered new exit (range 8) 936 | -10/Materials | Discovered new exit (range 12) 1031 | -10/Materials | Repaired Lgt. Treads 1222 | -10/Materials | Entered Mines 1236 | -10/Mines | Met a Derelict shopkeep closing up shop 1260 | -10/Mines | Met a Derelict bent on vengeance 1699 | -10/Mines | Discovered new exit (range 9) 1720 | -10/Mines | Entered Materials 1720 | -9/Materials | Accompanied by 2 allies 1720 | -9/Materials | Evolved 2 slots: Utility x2 1725 | -9/Materials | Led the pair of lost Derelicts to an unsafe place 2009 | -9/Materials | Discovered new exit (range 19) 2025 | -9/Materials | Build established: Skirmisher 2145 | -9/Materials | Discovered new exit (range 10) 2159 | -9/Materials | Identified exit to Mines 2164 | -9/Materials | Entered Mines 2164 | -9/Mines | Accompanied by 1 ally 2171 | -9/Mines | Received a Rocket Launcher from a helpful Derelict 2456 | -9/Mines | Found a damaged Exp. Sensor Array with a note attached 2490 | -9/Mines | Discovered new exit (range 14) 2616 | -9/Mines | Learned Materials garrison access intel 2641 | -9/Mines | Learned 2 Materials zone layouts 2847 | -9/Mines | Discovered new exit (range 5) 2859 | -9/Mines | Identified exit to Materials 3118 | -9/Mines | Deemed a non-threat by the Exiles lab entrance 3118 | -9/Mines | Discovered new exit (range 5) 3123 | -9/Mines | Identified exit to Exiles 3125 | -9/Mines | Entered Exiles 3153 | -9/Exiles | Discovered new exit (range 19) 3163 | -9/Exiles | Met 8R-AWN 3190 | -9/Exiles | Identified exit to Mines 3260 | -9/Exiles | Met EX-HEX 3309 | -9/Exiles | Met EX-BIN 3329 | -9/Exiles | Aligned with FarCom system 3331 | -9/Exiles | Given EX-Vault access code 3370 | -9/Exiles | Opened EX-Vault 3380 | -9/Exiles | Found Prototype Energy Cannon 3391 | -9/Exiles | Identified YOLO Cannon 3419 | -9/Exiles | Warned to stay clear of 0b10 Research branches 3462 | -9/Exiles | Met EX-DEC 3523 | -9/Exiles | Discovered exit to Mines (range 15) 3547 | -9/Exiles | Left Exiles lab with YOLO Cannon 3547 | -9/Exiles | Entered Mines 3678 | -8/Mines | Build established: Mutant 4141 | -8/Mines | Discovered exit to Materials (range 8) 4155 | -8/Mines | Entered Materials 4155 | -8/Materials | Evolved 2 slots: Power x1, Utility x1 4156 | -8/Materials | Identified exit to Factory 4157 | -8/Materials | Loaded intel: 1 garrison access location 4746 | -8/Materials | Destroyed 14 combat bots 4883 | -8/Materials | Core integrity fell below 50% 4897 | -8/Materials | Self-destructed Last Messages --------------- U-05 Engineer lays Concrete. K-01 Serf collects debris. U-05 Engineer lays Concrete. Acquired 4 matter. U-05 Engineer lays Concrete. U-05 Engineer builds a Wall. U-05 Engineer lays Concrete. K-01 Serf collects debris. U-05 Engineer lays Concrete. K-01 Serf collects debris. U-05 Engineer lays Concrete. YOLO Cannon suddenly explodes. Adv. Visual Processing Unit destroyed. Sml. Storage Unit destroyed. Lgt. Deuterium Engine destroyed. Core damaged (-244). A-02 Transporter destroyed. Destroyed Imp. Hover Unit. W-25 Informer destroyed. Y-45 Defender destroyed. Map ----- +----------------------------------------------------+ | ???????????# # + % " | | ???????????# #?? *! # # | | ???????????# #????!! # % = [# | | ???????????# #?????? # ######+## """ # | | ???????????# #????????# ??## *% " # # | | ???????????# #???????## ##+??## = ### # | | ???????????# #??????? # #????## #?# #### | | ???????????# #??????? #????## #?# #??? | | ???????????# #??????# # #?????# #?# #??? | | ???????????# #??????#?# #?????# /#?# #??? | | ???????????# #????????# #?????###### ### ###? | | ???????????# #????????# #??????????### / #? | | ???????????# #????????# #????????????# #? | | ???????????# #????????# ##+#?????????# T +? | | ???????????# #????????# #?????????# #? | | ???????????# #????????# #?????????# #? | | ???????????# "???####?# #?????????###+###? | | ???????????" "?? #?# #?????????# #? | | ######?????" "? =#?# ########### #? | | ###########" [%" ???# + """ #? | | ##""""" " ""?????# ############## """ #? | | = % ?????### #????????????# """ #? | | %!! ?????# # /#????????????# #? | | * % "????## ; /%#????????????# ! #? | | ###/#|" # #####;;; !/## ?#######? | | ###### =% # %@ ????????? | | ###### % " # ## # ????????? | | ?????# //= " #?????# #????? #???????????? | | ?????# //[ #?????# #???????????????????? | | ?????# " #?????# #####+#???????????????????? | | ?????# " ##?????# ????? ???????????????????? | | ?????### """"##??????# ????? ???????????????????? | | ???????#######???????#?????? ???????????????????? | | ???????????????????????????? ???????????????????? | | ???????????????????????????? ???????????????????? | | ???????????????????????????? ???????????????????? | | ???????????????????????????? ???????????????????? | | ???????????????????????????? ???????????????????? | | ???????????????????????????? ????????????????????? | | ?????????????????????????????????????????????????? | | ?????????????????????????????????????????????????? | | ?????????????????????????????????????????????????? | | ?????????????????????????????????????????????????? | | ?????????????????????????????????????????????????? | | ?????????????????????????????????????????????????? | | ?????????????????????????????????????????????????? | | ?????????????????????????????????????????????????? | | ?????????????????????????????????????????????????? | | ?????????????????????????????????????????????????? | | ?????????????????????????????????????????????????? | +----------------------------------------------------+ Best States ------------- Heat Dissipation 53 Energy Generation 23 Energy Capacity 380 Matter Stores 300 Matter Capacity 300 Sight Range 20 Robot Scan Range 15 Terrain Scan Density 10 Resistance: KI 20 Resistance: TH 20 Resistance: EX 20 Resistance: EM 20 Resistance: I 20 Resistance: S 20 Resistance: P 20 Evasion (%) 40 Targeting Accuracy 6 Recoil Reduction 2 Offensive Hacking 10 Item Schematics ----------------- None Robot Schematics ------------------ None Fabricated ------------ Nothing Alien Tech Used ----------------- None Achievements -------------- None Challenges ------------ None Game ------ Seed MyomerThermicShifter Manual? 0 Play Time 00:27:09 Cumulative 21.1 hours Start 2024.04.05 @ 12:57:22 End 2024.04.05 @ 13:25:05 Sessions 1 Manual Loads 0 Difficulty Adventurer Special Mode None Game No. 24 Rogue 0 Adventurer 24 Explorer 0 Win Type - Total 1 Types 1/0/0/0/0/0/0/0/0 Lore% 15 Gallery% 35 Achievement% 28 Wizard Run 0 Options --------- Layout 1 ASCII 0 Keyboard 0 Movement Mouse Keybinds 0 Fullscreen 1 Font 32/SmallcapsGlow Map View 50x40 Zoom Use 0% Tactical HUD 0 Map Filters NONE Filters NONE Steam 1 RUN: 0defb533-3d14-450d-8105-0867251da8ab